bitfinex-derivatives/quotes_SOLF0:USTF0_20250731
["timestamp","ask_amount","ask_price","bid_price","bid_amount"]
[1754001469308,1.36,172.88,172.82,8.967e-05]
[1754001469906,1.36,172.86,172.82,8.967e-05]
[1754001471206,5.7862,172.85,172.82,8.967e-05]
[1754001471512,1.36,172.87,172.82,3.04008967]
[1754001472213,5.7859,172.85,172.83,3.04]
[1754001472411,1.36,172.86,172.82,8.967e-05]
[1754001472706,1.36,172.84,172.82,8.967e-05]
[1754001472907,5.7866,172.83,172.82,8.967e-05]
[1754001473102,3.64865212,172.83,172.74,6.45753359]
[1754001473303,3.64865212,172.76,172.72,6.70666667]
[1754001473513,3.64865212,172.76,172.72,3.66666667]
[1754001473713,1.36,172.77,172.74,3.04]
[1754001473911,3.64865212,172.78,172.73,3.04]
[1754001474113,5.7887,172.77,172.73,3.04]
[1754001474315,5.00865212,172.78,172.73,3.04]
[1754001474516,1.36,172.77,172.74,3.04]
[1754001474708,1.36,172.76,172.74,3.04]
[1754001474909,1.36,172.79,172.73,3.04]
[1754001475106,5.7882,172.79,172.73,3.04]
[1754001475310,6.76971161,172.81,172.73,3.04]
[1754001475620,1.36,172.8,172.73,3.04]
[1754001475916,1.36,172.78,172.73,3.04]
[1754001476215,1.36,172.76,172.73,8.8298]
[1754001476416,1.36,172.76,172.73,3.04]
[1754001476908,1.36,172.76,172.72,3.66666667]
[1754001477110,6.76971161,172.79,172.73,3.04]
[1754001477717,5.7887,172.77,172.73,3.04]
[1754001478319,5.7887,172.77,172.74,3.07]
[1754001478516,1.37,172.79,172.76,3.07]
[1754001478715,1.37,172.78,172.76,3.07]
[1754001478918,1.37,172.77,172.74,3.07]
[1754001479315,5.7891,172.76,172.74,3.07]
[1754001479510,1.37,172.77,172.72,9.45686667]
[1754001479715,1.37,172.76,172.73,3.07]
[1754001479916,7.1592,172.76,172.74,3.07]
[1754001480110,1.37,172.76,172.74,3.07]
[1754001480313,5.40971161,172.78,172.72,9.45686667]
[1754001480519,1.37,172.77,172.75,3.07]
[1754001480713,1.37,172.77,172.73,3.07]
[1754001480915,5.40971161,172.78,172.72,3.66666667]
[1754001481114,1.37,172.81,172.73,3.07]
[1754001481318,1.37,172.81,172.72,9.07637828]
[1754001481522,1.37,172.79,172.76,3.07]
[1754001481722,5.7886,172.77,172.76,3.07]
[1754001481926,1.37,172.81,172.75,3.07]
[1754001482419,1.37,172.77,172.74,3.07]
[1754001482824,5.40971161,172.78,172.72,6.73666667]
[1754001482825,5.7899,172.74,172.72,6.73666667]
[1754001483125,1.37,172.75,172.73,3.07]
[1754001483319,1.37,172.77,172.73,3.07]
[1754001483518,5.7896,172.74,172.73,3.07]
[1754001484719,5.7899,172.73,172.72,6.73666667]
[1754001485120,1.37,172.75,172.73,3.07]
[1754001485324,5.7899,172.73,172.72,6.73666667]
[1754001485514,1.37,172.76,172.74,3.07]
[1754001485720,5.7889,172.76,172.75,3.07]
[1754001486015,1.37,172.76,172.73,3.07]
[1754001486224,5.7893,172.75,172.74,3.07]
[1754001486826,5.7891,172.76,172.74,3.07]
[1754001487619,6.77971161,172.8,172.72,3.66666667]
[1754001487925,6.77971161,172.82,172.75,3.07]
[1754001489021,5.7882,172.79,172.73,5.40971161]
[1754001489222,5.40971161,172.83,172.74,3.07]
[1754001489424,5.7872,172.82,172.79,3.07]
[1754001489636,6.77971161,172.81,172.76,3.07]
[1754001489931,5.40971161,172.85,172.79,3.07]
[1754001490425,5.40971161,172.85,172.75,5.40971161]
[1754001490426,5.40971161,172.85,172.8,3.07]
[1754001490723,5.40971161,172.85,172.76,3.07]
[1754001491024,1.37,172.86,172.81,3.07]
[1754001491225,5.40971161,172.87,172.75,5.40971161]
[1754001491418,5.7868,172.83,172.75,5.40971161]
[1754001491822,1.37,172.85,172.75,5.40971161]
[1754001492028,1.37,172.85,172.76,3.07]
[1754001492221,388.86,172.89,172.72,3.66666667]
[1754001492222,5.40971161,172.81,172.73,3.07]
[1754001492523,5.40971161,172.83,172.74,3.07]
[1754001493322,5.7878,172.8,172.77,5.7884]
[1754001493520,6.77971161,172.83,172.78,3.07]
[1754001493929,5.7874,172.81,172.79,3.07]
[1754001494229,5.7874,172.81,172.8,3.07]
[1754001494927,5.7874,172.81,172.72,3.66666667]
[1754001494928,6.77971161,172.81,172.74,3.07]
[1754001495325,1.37,172.8,172.74,3.07]
[1754001495528,1.37,172.8,172.74,8.8594]
[1754001495725,5.40971161,172.79,172.75,3.07]
[1754001496033,1.37,172.76,172.73,3.07]
[1754001496232,1.37,172.76,172.74,3.07]
[1754001496529,5.40971161,172.77,172.72,3.66666667]
[1754001496730,1.37,172.75,172.73,3.07]
[1754001496932,5.7898,172.74,172.73,3.07]
[1754001497424,5.7899,172.73,172.72,3.66666667]
[1754001497932,5.7899,172.73,172.72,6.73666667]
[1754001499030,7.1599,172.73,172.72,3.66666667]
[1754001499532,5.7899,172.73,172.72,6.73666667]
[1754001500526,10.61045113,172.73,172.72,6.73666667]
[1754001500722,10.61110249,172.73,172.72,6.73666667]
[1754001500926,5.7899,172.73,172.72,6.73666667]
[1754001501122,10.60056248,172.73,172.72,6.73666667]
[1754001501326,4.81129446,172.73,172.72,6.73666667]
[1754001501726,10.60119446,172.73,172.72,6.73666667]
[1754001502735,11.97119446,172.73,172.72,3.66666667]
[1754001503130,10.60119446,172.73,172.72,6.73666667]
[1754001503728,4.81129446,172.73,172.72,6.73666667]
[1754001504029,5.40971161,172.79,172.73,3.07]
[1754001504229,5.40971161,172.75,172.73,3.07]
[1754001504534,4.81524298,172.74,172.73,3.07]
[1754001504725,5.7899,172.73,172.72,3.66666667]
[1754001504930,11.97463573,172.73,172.72,1.46066667]
[1754001505132,5.7899,172.74,172.72,4.53066667]
[1754001505433,4.80935408,172.73,172.72,1.46066667]
[1754001505731,5.7899,172.74,172.72,1.46066667]
[1754001505930,5.02387785,172.78,172.73,3.07]
[1754001506132,4.810757,172.77,172.73,3.07]
[1754001506333,4.810757,172.76,172.73,3.07]
[1754001506534,4.810757,172.75,172.73,3.07]
[1754001506925,4.810757,172.74,172.73,3.07]
[1754001507124,4.8127439,172.77,172.75,3.07]
[1754001507326,4.81314651,172.76,172.75,3.07]
[1754001507530,4.81359882,172.77,172.75,3.07]
[1754001507732,4.81359882,172.76,172.75,3.07]
[1754001508525,4.81359882,172.78,172.75,3.07]
[1754001508724,5.7887,172.77,172.76,3.05]
[1754001509028,1.37,172.76,172.74,3.05]
[1754001509432,5.7893,172.75,172.74,3.05]
[1754001509933,7.159,172.76,172.74,3.05]
[1754001510137,5.789,172.76,172.75,3.05]
[1754001510934,1.37,172.77,172.73,3.05]
[1754001511134,1.37,172.75,172.73,3.05]
[1754001512035,5.7898,172.74,172.72,1.46066667]
[1754001512438,5.40908559,172.78,172.72,1.46066667]
[1754001512631,8.64718939,172.77,172.73,3.05]
[1754001512827,8.64718939,172.76,172.73,3.05]
[1754001513033,5.40908559,172.78,172.73,3.05]
[1754001513238,5.7894,172.75,172.73,3.05]
[1754001513439,1.37,172.77,172.73,3.05]
[1754001513640,10.0217568,172.76,172.73,3.05]
[1754001513836,5.7896,172.74,172.73,3.05]
[1754001514934,5.7899,172.73,172.72,4.51066667]
[1754001518738,6.77908559,172.77,172.72,1.46066667]
[1754001518939,4.11938665,172.76,172.73,3.05]
[1754001519139,6.77908559,172.79,172.73,3.05]
[1754001519340,5.7899,172.73,172.72,1.46066667]
[1754001520043,5.7899,172.73,172.72,4.51066667]
[1754001524943,5.7899,172.73,172.72,1.46066667]
[1754001525149,5.7899,172.73,172.72,6.667e-05]
[1754001525150,11.25459379,172.73,172.72,6.667e-05]
[1754001525340,11.25459379,172.73,172.61,5.40908559]
[1754001525341,1.37,172.72,172.57,3.05]
[1754001525540,1.37,172.67,172.6,3.05]
[1754001525843,5.40908559,172.66,172.6,3.05]
[1754001526038,5.40908559,172.66,172.6,5.7942]
[1754001526245,6.77908559,172.66,172.61,3.05]
[1754001526439,5.40908559,172.64,172.55,3.05]
[1754001526645,5.45682302,172.65,172.56,3.05]
[1754001526646,5.7936,172.63,172.56,3.05]
[1754001526949,4.82234756,172.7,172.52,11.13152211]
[1754001526950,5.40908559,172.68,172.58,3.05]
[1754001527149,6.77908559,172.7,172.6,3.05]
[1754001527349,4.16934894,172.69,172.6,3.05]
[1754001527539,5.7919,172.67,172.63,5.7931]
[1754001527740,5.7919,172.67,172.6,3.05]
[1754001527741,5.40908559,172.71,172.64,3.05]
[1754001527949,6.77908559,172.73,172.64,3.05]
[1754001528142,5.54008843,172.72,172.66,3.05]
[1754001528350,1.37,172.7,172.62,3.05]
[1754001528650,1.37,172.7,172.63,5.7931]
[1754001528848,1.37,172.7,172.62,3.05]
[1754001529050,5.40908559,172.71,172.63,3.05]
[1754001529247,5.40908559,172.69,172.64,3.05]
[1754001529443,1.37,172.68,172.61,3.05]
[1754001529650,5.40908559,172.69,172.61,3.05]
[1754001529952,6.77908559,172.69,172.64,3.05]
[1754001530249,5.40908559,172.69,172.64,3.05]
[1754001530649,6.77908559,172.69,172.64,3.05]
[1754001530850,5.7926,172.65,172.64,3.05]
[1754001531240,5.7935,172.63,172.57,108.56]
[1754001531445,3.6553427,172.66,172.58,3.05]
[1754001531944,5.7931,172.64,172.61,3.05]
[1754001532342,3.6553427,172.68,172.63,5.793]
[1754001532548,3.6553427,172.68,172.64,3.05]
[1754001532947,5.7927,172.65,172.59,3.6553427]
[1754001533148,3.6553427,172.68,172.59,3.6553427]
[1754001533352,5.0253427,172.68,172.6,3.05]
[1754001533856,5.0253427,172.66,172.58,3.05]
[1754001534245,5.7938,172.62,172.59,3.05]
[1754001534449,3.6553427,172.71,172.59,3.05]
[1754001534450,3.6553427,172.64,172.59,3.05]
[1754001534645,5.7948,172.59,172.55,5.7958]
[1754001534853,3.6553427,172.62,172.56,3.05]
[1754001535248,5.7947,172.59,172.56,3.05]
[1754001535449,3.6553427,172.62,172.56,3.05]
[1754001535755,5.0253427,172.63,172.56,3.05]
[1754001536146,1.37,172.62,172.56,3.05]
[1754001536352,3.6553427,172.63,172.56,3.05]
[1754001536751,5.7946,172.6,172.57,3.05]
[1754001537156,1.37,172.63,172.57,3.05]
[1754001537353,16.38674653,172.7,172.57,3.05]
[1754001537354,3.6553427,172.64,172.57,3.05]
[1754001538150,3.6553427,172.64,172.57,8.8451]
[1754001538151,5.7943,172.61,172.57,8.8451]
[1754001538353,3.6553427,172.64,172.58,3.29]
[1754001538750,5.794,172.61,172.58,3.29]
[1754001539152,5.0153427,172.64,172.58,3.29]
[1754001539357,5.0153427,172.62,172.53,3.29]
[1754001539860,1.36,172.61,172.56,3.29]
[1754001540054,1.36,172.6,172.57,3.29]
[1754001540259,3.6553427,172.62,172.52,7.99551989]
[1754001540461,3.6553427,172.65,172.58,3.29]
[1754001540657,3.6553427,172.67,172.6,3.29]
[1754001540858,5.7933,172.63,172.6,3.29]
[1754001541459,5.7933,172.63,172.61,3.29]
[1754001541760,5.0153427,172.67,172.61,3.29]
[1754001542161,5.0153427,172.67,172.59,3.6553427]
[1754001542359,1.36,172.65,172.62,3.29]
[1754001542665,5.7933,172.63,172.62,3.29]
[1754001542969,1.36,172.66,172.58,5.7948]
[1754001543157,1.36,172.66,172.56,5.41694507]
[1754001543366,1.36,172.66,172.57,3.29]
[1754001543561,5.41694507,172.69,172.61,3.29]
[1754001543766,1.36,172.68,172.61,3.29]
[1754001544064,5.41694507,172.65,172.61,3.29]
[1754001544268,1.36,172.64,172.61,3.29]
[1754001544465,6.77694507,172.67,172.57,3.29]
[1754001544663,5.41694507,172.67,172.59,3.29]
[1754001544868,1.36,172.64,172.59,3.29]
[1754001545059,5.41694507,172.61,172.53,5.7966]
[1754001545364,1.36,172.6,172.58,3.29]
[1754001545667,5.7956,172.57,172.56,3.29]
[1754001546662,6.77694507,172.59,172.53,3.29]
[1754001546866,6.77694507,172.59,172.53,9.0865]
[1754001547063,6.77694507,172.61,172.54,3.29]
[1754001547363,1.36,172.6,172.54,3.29]
[1754001547566,5.7955,172.57,172.54,3.29]
[1754001547767,5.41694507,172.61,172.53,3.29]
[1754001547958,6.77694507,172.61,172.54,3.29]
[1754001548162,5.7956,172.57,172.54,3.29]
[1754001548364,6.77694507,172.61,172.54,9.0861]
[1754001548562,6.77694507,172.61,172.53,3.29]
[1754001548967,6.77694507,172.61,172.52,4.34017719]
[1754001549169,6.77694507,172.61,172.57,3.29]
[1754001549358,5.7949,172.59,172.52,4.34017719]
[1754001549565,6.77694507,172.61,172.59,3.29]
[1754001549767,5.41694507,172.63,172.61,3.29]
[1754001549964,1.36,172.65,172.57,5.41694507]
[1754001550162,5.41694507,172.67,172.6,3.29]
[1754001550365,6.77694507,172.67,172.6,3.29]
[1754001550571,6.77694507,172.67,172.61,3.29]
[1754001551269,1.36,172.66,172.61,3.29]
[1754001551469,5.7939,172.62,172.61,3.29]
[1754001551772,5.7939,172.62,172.55,5.41694507]
[1754001551773,5.41694507,172.63,172.57,3.29]
[1754001552172,5.7947,172.59,172.57,3.29]
[1754001552875,5.7944,172.6,172.57,3.29]
[1754001553066,5.41694507,172.63,172.57,3.29]
[1754001553372,6.78694507,172.65,172.57,3.29]
[1754001553574,5.7943,172.6,172.58,3.29]
[1754001554272,5.7943,172.6,172.57,5.7952]
[1754001554572,5.7943,172.6,172.59,3.29]
[1754001554972,1.37,172.6,172.54,3.29]
[1754001555173,1.37,172.58,172.55,3.29]
[1754001555371,5.7953,172.57,172.56,3.29]
[1754001556776,5.7947,172.59,172.56,3.29]
[1754001556976,5.7947,172.59,172.56,9.0854]
[1754001557271,5.7947,172.59,172.57,3.29]
[1754001557675,1.37,172.63,172.58,3.29]
[1754001557874,5.41694507,172.62,172.55,3.29]
[1754001558175,1.37,172.61,172.56,3.29]
[1754001558371,1.37,172.6,172.57,3.29]
[1754001558875,5.795,172.58,172.57,3.29]
[1754001559078,1.37,172.59,172.53,3.29]
[1754001559773,5.7955,172.57,172.54,3.29]
[1754001559973,5.41694507,172.6,172.52,4.34017719]
[1754001560168,5.41694507,172.58,172.52,4.34017719]
[1754001560368,5.796,172.55,172.52,4.34017719]
[1754001560968,5.7958,172.56,172.54,3.29]
[1754001561574,5.796,172.55,172.54,3.29]
[1754001562782,1.37,172.6,172.54,3.29]
[1754001563276,5.7955,172.57,172.55,3.29]
[1754001563476,5.7955,172.57,172.56,3.29]
[1754001564074,5.7951,172.58,172.56,3.29]
[1754001564281,1.37,172.6,172.53,3.29]
[1754001564788,5.7956,172.56,172.55,3.29]
[1754001565788,1.37,172.58,172.53,3.29]
[1754001565979,1.37,172.56,172.52,4.34017719]
[1754001566183,1.37,172.56,172.54,3.29]
[1754001566487,5.7966,172.54,172.53,3.29]
[1754001568387,5.7966,172.53,172.52,4.34017719]
[1754001568581,7.1766,172.53,172.52,4.34017719]
[1754001568786,5.7966,172.53,172.52,7.38017719]
[1754001568990,5.41694507,172.57,172.52,4.34017719]
[1754001569182,4.80444653,172.62,172.52,4.34017719]
[1754001569183,5.41694507,172.53,172.52,4.34017719]
[1754001569387,6.79694507,172.53,172.52,4.34017719]
[1754001569589,11.21354507,172.53,172.52,4.34017719]
[1754001569886,5.7966,172.53,172.52,7.38017719]
[1754001570484,7.1766,172.53,172.52,4.34017719]
[1754001570889,10.83830844,172.53,172.52,4.34017719]
[1754001571088,9.45830844,172.53,172.52,7.38017719]
[1754001571486,9.45830844,172.53,172.52,2.96017719]
[1754001571688,5.7966,172.53,172.52,2.96017719]
[1754001571892,5.7966,172.53,172.52,6.00017719]
[1754001574794,9.45830844,172.53,172.52,2.96017719]
[1754001575195,9.45830844,172.53,172.52,6.00017719]
[1754001575998,9.45830844,172.53,172.52,2.96017719]
[1754001576794,5.7966,172.53,172.52,6.00017719]
[1754001577000,9.45830844,172.53,172.52,6.00017719]
[1754001577403,9.45830844,172.53,172.52,2.96017719]
[1754001577792,5.7976,172.5,172.49,3.04]
[1754001578298,125.59384653,172.59,172.49,3.04]
[1754001578299,4.80444653,172.58,172.49,3.04]
[1754001578497,3.66170844,172.5,172.49,3.04]
[1754001578896,9.45930844,172.5,172.49,3.04]
[1754001579593,3.66170844,172.52,172.49,3.04]
[1754001579991,16.39384653,172.59,172.49,3.04]
[1754001580195,4.6777374,172.58,172.53,3.04]
[1754001580394,4.6777374,172.58,172.51,3.66170844]
[1754001580395,3.66170844,172.58,172.51,3.66170844]
[1754001580595,5.7955,172.57,172.53,5.7964]
[1754001580796,3.66170844,172.6,172.54,3.04]
[1754001580996,5.7958,172.56,172.54,3.04]
[1754001581198,3.66170844,172.6,172.54,3.04]
[1754001581400,4.80444653,172.64,172.5,3.04]
[1754001581401,3.66170844,172.56,172.5,3.04]
[1754001581696,5.7965,172.54,172.51,3.04]
[1754001582094,5.7961,172.55,172.51,8.8371]
[1754001582300,5.7961,172.55,172.52,3.04]
[1754001582496,4.80444653,172.63,172.52,3.04]
[1754001582704,3.66170844,172.6,172.52,3.04]
[1754001583003,3.66170844,172.6,172.53,3.04]
[1754001583193,5.7956,172.57,172.53,5.7964]
[1754001583395,5.7956,172.57,172.54,3.04]
[1754001583908,3.66170844,172.66,172.57,3.04]
[1754001584201,3.66170844,172.62,172.57,3.04]
[1754001584508,5.7948,172.59,172.57,3.04]
[1754001585612,3.66170844,172.6,172.52,3.66170844]
[1754001585808,3.66170844,172.6,172.55,3.04]
[1754001586003,5.7953,172.57,172.56,3.04]
[1754001587098,11.5848,172.66,172.5,3.66170844]
[1754001587099,3.66170844,172.58,172.5,3.66170844]
[1754001587409,3.66170844,172.58,172.44,47.66170844]
[1754001587410,3.66170844,172.58,172.51,3.04]
[1754001587707,3.66170844,172.56,172.5,3.04]
[1754001588105,3.66170844,172.56,172.52,3.04]
[1754001588707,4.80444653,172.63,172.53,3.04]
[1754001588906,3.66170844,172.6,172.53,3.04]
[1754001589301,17.96421522,172.66,172.45,109.3]
[1754001589302,5.7963,172.54,172.51,3.04]
[1754001590410,5.7963,172.54,172.52,3.04]
[1754001590606,3.66170844,172.59,172.52,3.04]
[1754001590803,3.66170844,172.61,172.56,3.04]
[1754001591010,4.20331619,172.6,172.56,3.04]
[1754001591212,3.66170844,172.61,172.56,3.04]
[1754001591609,3.66170844,172.61,172.57,3.04]
[1754001591912,5.7952,172.58,172.57,3.04]
[1754001593709,3.66170844,172.61,172.57,3.04]
[1754001593912,3.66170844,172.65,172.57,6.70170844]
[1754001594115,4.20223514,172.64,172.58,3.04]
[1754001594303,4.20223514,172.63,172.58,3.04]
[1754001594508,4.20223514,172.62,172.58,3.04]
[1754001594709,5.7938,172.62,172.59,3.04]
[1754001595011,3.66170844,172.65,172.59,3.04]
[1754001595212,4.2028138,172.64,172.59,3.04]
[1754001595415,4.2028138,172.63,172.6,3.04]
[1754001595615,4.20401259,172.62,172.6,3.04]
[1754001595812,3.66170844,172.65,172.6,3.04]
[1754001596009,4.20263234,172.64,172.6,3.04]
[1754001596209,4.20263234,172.63,172.6,3.04]
[1754001596411,5.7939,172.62,172.61,3.04]
[1754001597709,5.7934,172.63,172.61,3.04]
[1754001598112,3.66170844,172.66,172.61,3.04]
[1754001598417,4.20570491,172.65,172.61,3.04]
[1754001598616,5.7938,172.62,172.59,5.7944]
[1754001598914,5.7938,172.62,172.57,9.45670844]
[1754001599209,5.7938,172.62,172.58,3.16]
[1754001599414,11.5877,172.62,172.46,9.68630038]
[1754001599611,4.81228286,172.68,172.54,3.66170844]
[1754001599806,3.66170844,172.63,172.55,3.16]
[1754001600010,3.66170844,172.65,172.57,3.16]
[1754001600316,3.66170844,172.61,172.57,3.16]
[1754001600810,6.37941522,172.72,172.48,389.52]
[1754001600811,3.66170844,172.59,172.5,3.16]
[1754001601014,3.66170844,172.57,172.53,3.16]
[1754001602009,3.66170844,172.57,172.49,3.16]
[1754001602210,5.7961,172.55,172.51,3.16]
[1754001602812,3.66170844,172.57,172.48,393.18170844]
[1754001602813,3.66170844,172.57,172.49,3.16]
[1754001603318,3.66170844,172.57,172.48,393.18170844]
[1754001603319,5.7963,172.55,172.51,3.16]
[1754001603617,3.66170844,172.59,172.51,3.16]
[1754001603917,3.66170844,172.59,172.53,3.16]
[1754001604418,3.66170844,172.57,172.53,3.16]
[1754001604813,11.5835,172.68,172.53,3.16]
[1754001604814,3.66170844,172.59,172.53,3.16]
[1754001605008,5.7954,172.57,172.53,5.7964]
[1754001605214,3.66170844,172.63,172.55,3.16]
[1754001605410,4.20597092,172.62,172.55,3.16]
[1754001605615,4.20597092,172.61,172.55,3.16]
[1754001605916,3.66170844,172.62,172.57,3.16]
[1754001606117,4.20579716,172.61,172.57,3.16]
[1754001606320,3.66170844,172.62,172.57,3.16]
[1754001606514,4.81228286,172.68,172.57,3.16]
[1754001606707,511.7399,172.74,172.59,3.16]
[1754001606708,4.20634802,172.67,172.59,3.16]
[1754001606912,4.20634802,172.66,172.61,3.16]
[1754001607113,4.20634802,172.65,172.63,3.16]
[1754001607620,3.66170844,172.71,172.63,3.16]
[1754001607818,4.20676195,172.7,172.63,3.16]
[1754001608013,4.20676195,172.69,172.63,3.16]
[1754001608215,3.66170844,172.71,172.64,3.66170844]
[1754001608414,4.20463825,172.7,172.65,3.16]
[1754001608613,3.66170844,172.71,172.65,3.16]
[1754001608819,4.20524738,172.7,172.65,3.16]
[1754001609116,5.41352912,172.68,172.65,3.16]
[1754001609320,5.41352912,172.68,172.51,65.28090038]
[1754001609321,5.41352912,172.66,172.56,5.41352912]
[1754001609515,5.7935,172.63,172.58,3.16]
[1754001609919,5.41352912,172.68,172.58,8.57352912]
[1754001610116,5.41352912,172.7,172.62,3.16]
[1754001610511,5.7933,172.63,172.62,3.16]
[1754001610824,5.41352912,172.64,172.56,3.16]
[1754001611121,5.7944,172.6,172.56,8.9555]
[1754001611316,5.41352912,172.62,172.57,3.16]
[1754001611823,5.41352912,172.62,172.55,3.16]
[1754001612521,5.7943,172.6,172.56,3.16]
[1754001612922,5.41352912,172.64,172.56,3.16]
[1754001613324,5.7937,172.62,172.59,3.16]
[1754001613521,5.41352912,172.64,172.59,3.16]
[1754001613717,5.41352912,172.66,172.59,3.16]
[1754001614413,5.41352912,172.66,172.57,5.41352912]
[1754001614619,5.41352912,172.66,172.58,3.16]
[1754001614919,5.7935,172.63,172.59,5.7944]
[1754001615119,5.7935,172.63,172.6,3.16]
[1754001615317,5.41352912,172.66,172.6,3.16]
[1754001615318,5.793,172.64,172.6,3.16]
[1754001615520,5.793,172.64,172.61,3.16]
[1754001615816,5.7933,172.63,172.61,3.16]
[1754001616017,5.7933,172.63,172.58,3.16]
[1754001616214,5.41352912,172.68,172.6,3.16]
[1754001616424,5.7938,172.62,172.58,3.16]
[1754001616818,5.7934,172.63,172.59,5.7946]
[1754001617025,5.41352912,172.66,172.58,3.16]
[1754001617626,5.7939,172.62,172.57,5.41352912]
[1754001617923,5.7939,172.62,172.61,3.16]
[1754001618226,5.41352912,172.66,172.59,3.16]
[1754001618425,4.22175542,172.65,172.59,3.16]
[1754001618626,5.41352912,172.66,172.59,8.9545]
[1754001618818,5.41352912,172.66,172.6,3.16]
[1754001619220,5.41352912,172.68,172.61,3.16]
[1754001619420,5.41352912,172.62,172.5,3.16]
[1754001619630,5.41352912,172.59,172.5,3.16]
[1754001620223,5.7952,172.58,172.55,3.16]
[1754001620526,5.41352912,172.59,172.55,3.16]
[1754001620729,5.41352912,172.63,172.55,3.16]
[1754001620929,4.22212027,172.62,172.55,3.16]
[1754001621130,5.41352912,172.63,172.55,3.16]
[1754001621428,4.22327765,172.62,172.56,3.16]
[1754001621723,4.81228286,172.67,172.56,3.16]
[1754001621929,5.7942,172.61,172.58,3.16]
[1754001622430,4.81228286,172.68,172.59,3.16]
[1754001622628,5.41352912,172.64,172.59,3.16]
[1754001622824,4.22611115,172.63,172.58,5.7947]
[1754001623029,4.22611115,172.63,172.56,3.16]
[1754001623424,4.22611115,172.63,172.57,5.7951]
[1754001623623,5.41352912,172.62,172.54,3.16]
[1754001623929,5.41352912,172.62,172.55,3.16]
[1754001624127,4.22822155,172.61,172.52,3.16]
[1754001624323,4.22822155,172.6,172.52,3.16]
[1754001624523,4.22976822,172.59,172.53,3.16]
[1754001624725,5.41352912,172.62,172.53,3.16]
[1754001624924,4.23139474,172.61,172.53,3.16]
[1754001625125,5.41352912,172.58,172.54,3.16]
[1754001625627,5.796,172.55,172.54,3.16]
[1754001626229,5.41352912,172.58,172.53,3.16]
[1754001626425,4.81228286,172.63,172.53,3.16]
[1754001626620,9.04421581,172.62,172.53,3.16]
[1754001626825,4.23193295,172.61,172.56,3.16]
[1754001627019,4.23193295,172.6,172.57,3.16]
[1754001627225,4.23193295,172.59,172.57,3.16]
[1754001627423,4.81228286,172.63,172.51,5.41352912]
[1754001627629,5.41352912,172.61,172.54,3.16]
[1754001627829,4.23275874,172.6,172.54,3.16]
[1754001628032,5.7958,172.56,172.54,3.16]
[1754001628330,5.41352912,172.61,172.54,3.16]
[1754001628527,4.23504682,172.6,172.54,3.16]
[1754001628731,5.7958,172.56,172.54,3.16]
[1754001628925,5.41352912,172.61,172.54,3.16]
[1754001629121,5.7954,172.57,172.54,3.16]
[1754001629532,5.7954,172.57,172.54,5.7963]
[1754001629736,5.7954,172.57,172.55,3.29]
[1754001630030,5.795,172.58,172.56,3.29]
[1754001630231,5.41352912,172.61,172.53,3.29]
[1754001630433,4.23593331,172.6,172.53,3.29]
[1754001630733,5.7954,172.57,172.53,9.0864]
[1754001631032,5.41352912,172.61,172.54,3.29]
[1754001631224,5.7951,172.58,172.54,9.0861]
[1754001631430,5.7951,172.58,172.55,3.29]
[1754001631731,5.41352912,172.61,172.56,3.29]
[1754001632029,5.41352912,172.59,172.54,3.29]
[1754001632228,5.41352912,172.57,172.5,3.29]